Body Name ,Body Unit,Service Label ,Service Code,Organisational Unit ,Expenditure,Payment Date,Transaction Number ,Net payment,Supplier ID,Supplier 
North West Leicestershire District Council,31UH ,Street Management,ENOT,Environment Transport,Vehicle Parts,10/07/2013,1261006,"181,223.00",A000522,Dennis Eagle Limited
North West Leicestershire District Council,31UH ,Street Management,ENOT,Environment Transport,Vehicle Parts,10/07/2013,1261006,"181,223.00",A000522,Dennis Eagle Limited
North West Leicestershire District Council,31UH ,Information Technology,ICT,ICT Services,IT - solutions,03/07/2013,1260184,"28,206.74",A034753,ANS Group Plc
North West Leicestershire District Council,31UH ,Information Technology,ICT,ICT Services,IT - solutions,03/07/2013,1260184,"28,206.74",A034753,ANS Group Plc
North West Leicestershire District Council,31UH ,Street Management,ENOT,Environment Transport,Fuel ,24/07/2013,1262138,"20,704.12",A034942,Pace Petroleum Ltd
North West Leicestershire District Council,31UH ,Street Management,ENOT,Environment Transport,Fuel ,24/07/2013,1262138,"20,704.12",A034942,Pace Petroleum Ltd
North West Leicestershire District Council,31UH ,Finance,HOFI,Head of Finance,External audit,17/07/2013,1261710,"20,140.50",A035156,KMPG LLP
North West Leicestershire District Council,31UH ,Finance,HOFI,Head of Finance,External audit,17/07/2013,1261710,"20,140.50",A035156,KMPG LLP
North West Leicestershire District Council,31UH ,Street Management,ENOT,Environment Transport,Fuel ,03/07/2013,1260621,"20,000.11",A034942,Pace Petroleum Ltd
North West Leicestershire District Council,31UH ,Street Management,ENOT,Environment Transport,Fuel ,03/07/2013,1260621,"20,000.11",A034942,Pace Petroleum Ltd
North West Leicestershire District Council,31UH ,Finance,FINPLA,Financial Planning,Training,03/07/2013,1260431,"17,197.00",A000770,Hinckley & Bosworth Borough Council
North West Leicestershire District Council,31UH ,Finance,FINPLA,Financial Planning,Training,03/07/2013,1260431,"17,197.00",A000770,Hinckley & Bosworth Borough Council
North West Leicestershire District Council,31UH ,Street Management,ENOWM,Environment Waste Management,Waste Management,24/07/2013,1261884,"13,380.00",A001253,ESE Limited
North West Leicestershire District Council,31UH ,Street Management,ENOWM,Environment Waste Management,Waste Management,24/07/2013,1261884,"13,380.00",A001253,ESE Limited
North West Leicestershire District Council,31UH ,Finance,HOFI,Head of Finance,Parish precepts,17/07/2013,1261709,"13,250.00",A000323,Charnwood Borough Council
North West Leicestershire District Council,31UH ,Finance,HOFI,Head of Finance,Parish precepts,17/07/2013,1261709,"13,250.00",A000323,Charnwood Borough Council
North West Leicestershire District Council,31UH ,Information Technology,ICT,ICT Services,IT - software services,10/07/2013,1260776,"9,161.63",A023640,Nviron Limited
North West Leicestershire District Council,31UH ,Information Technology,ICT,ICT Services,IT - software services,10/07/2013,1260776,"9,161.63",A023640,Nviron Limited
North West Leicestershire District Council,31UH ,Housing Repairs,HRAHRM,HRA Housing Repairs & Maintenance,Gas & Electricity - Boiler replacement,17/07/2013,1261608,"9,102.66",A031787,Lakers UK
North West Leicestershire District Council,31UH ,Planning & Development,EDC,Environment - Development Control,Consultancy Services,10/07/2013,1260790,"8,351.50",A013765,Stansgate Planning Consultants
North West Leicestershire District Council,31UH ,Planning & Development,EDC,Environment - Development Control,Consultancy Services,10/07/2013,1260790,"8,351.50",A013765,Stansgate Planning Consultants
North West Leicestershire District Council,31UH ,Housing Repairs,HRAHRM,HRA Housing Repairs & Maintenance,Gas & Electricity - Boiler replacement,03/07/2013,1260571,"6,519.35",A031787,Lakers UK
North West Leicestershire District Council,31UH ,Street Management,ESS,Environment - Street Scene,Environmental & safety products,17/07/2013,1260814,"6,492.00",A000253,Bruel & Kjaer Uk Limited
North West Leicestershire District Council,31UH ,Street Management,ESS,Environment - Street Scene,Environmental & safety products,17/07/2013,1260814,"6,492.00",A000253,Bruel & Kjaer Uk Limited
North West Leicestershire District Council,31UH ,Property Services,PROPFM,Property Facilities Management,Building Services,24/07/2013,1261891,"5,278.50",A033342,J Tomlinson Ltd
North West Leicestershire District Council,31UH ,Property Services,PROPFM,Property Facilities Management,Building Services,24/07/2013,1261891,"5,278.50",A033342,J Tomlinson Ltd
North West Leicestershire District Council,31UH ,Property Services,PROPFM,Property Facilities Management,Lighting - Lighting Gear and Installation for Floodlights,03/07/2013,1260632,"5,120.00",A037955,Charnwood Electrical Limited
North West Leicestershire District Council,31UH ,Property Services,PROPFM,Property Facilities Management,Lighting - Lighting Gear and Installation for Floodlights,03/07/2013,1260632,"5,120.00",A037955,Charnwood Electrical Limited
North West Leicestershire District Council,31UH ,Information Technology,ICT,ICT Services,IT - Equipment,10/07/2013,1260807,"4,800.00",A000470,Dell Computer Corporation Ltd
North West Leicestershire District Council,31UH ,Information Technology,ICT,ICT Services,IT - Equipment,10/07/2013,1260807,"4,800.00",A000470,Dell Computer Corporation Ltd
North West Leicestershire District Council,31UH ,Housing Repairs,HRAHRM,HRA Housing Repairs & Maintenance,Gas & Electricity - Boiler replacement,10/07/2013,1261437,"4,006.60",A031787,Lakers UK
North West Leicestershire District Council,31UH ,Housing Repairs,HRAHRM,HRA Housing Repairs & Maintenance,Gas & Electricity - Boiler replacement,10/07/2013,1261440,"4,004.07",A031787,Lakers UK
North West Leicestershire District Council,31UH ,Planning & Development,ECCTV,Environment - Town Centre/CCTV,Security - Provide Monitoring Services in respect of CCTV,10/07/2013,1260894,"3,923.00",A038132,Premier Security Services (Midlands) Limited
North West Leicestershire District Council,31UH ,Planning & Development,ECCTV,Environment - Town Centre/CCTV,Security - Provide Monitoring Services in respect of CCTV,10/07/2013,1260894,"3,923.00",A038132,Premier Security Services (Midlands) Limited
North West Leicestershire District Council,31UH ,Leisure Centres,HLC,Hermitage Leisure Centre,Security Services - CCTV Maintenance,03/07/2013,1260363,"3,731.00",A035493,Quadrant Security Group Limited
North West Leicestershire District Council,31UH ,Leisure Centres,HLC,Hermitage Leisure Centre,Security Services - CCTV Maintenance,03/07/2013,1260363,"3,731.00",A035493,Quadrant Security Group Limited
North West Leicestershire District Council,31UH ,Information Technology,ICT,ICT Services,IT - Scanning equipment,03/07/2013,1260012,"3,475.00",A034157,Idox Software Ltd
North West Leicestershire District Council,31UH ,Information Technology,ICT,ICT Services,IT - Scanning equipment,03/07/2013,1260012,"3,475.00",A034157,Idox Software Ltd
North West Leicestershire District Council,31UH ,Street Management,ENOP,Environment Parks,Leisure - Painting and Decorating,03/07/2013,1260410,"3,462.00",A038547,Cyril John Decorators Limited
North West Leicestershire District Council,31UH ,Street Management,ENOP,Environment Parks,Leisure - Painting and Decorating,03/07/2013,1260410,"3,462.00",A038547,Cyril John Decorators Limited
North West Leicestershire District Council,31UH ,Street Management,ENOWM,Environment Waste Management,Waste Management,10/07/2013,1260641,"3,250.00",A001253,ESE Limited
North West Leicestershire District Council,31UH ,Street Management,ENOWM,Environment Waste Management,Waste Management,10/07/2013,1260641,"3,250.00",A001253,ESE Limited
North West Leicestershire District Council,31UH ,Housing Repairs,HRAHRM,HRA Housing Repairs & Maintenance,Gas & Electricity - Boiler replacement,17/07/2013,1261642,"3,206.20",A031787,Lakers UK
North West Leicestershire District Council,31UH ,Property Services,PROPCL,Property Commercial Lettings,Mail Supplies -Franking Machine,10/07/2013,1260805,"3,138.50",A008204,Purchase Power
North West Leicestershire District Council,31UH ,Property Services,PROPCL,Property Commercial Lettings,Mail Supplies -Franking Machine,10/07/2013,1260805,"3,138.50",A008204,Purchase Power
North West Leicestershire District Council,31UH ,Housing Repairs,HRAHRM,HRA Housing Repairs & Maintenance,Gas & Electricity - Boiler replacement,10/07/2013,1261439,"3,128.98",A031787,Lakers UK
North West Leicestershire District Council,31UH ,Information Technology,ICT,ICT Services,IT - solutions,17/07/2013,1261495,"3,000.00",A034753,ANS Group Plc
North West Leicestershire District Council,31UH ,Information Technology,ICT,ICT Services,IT - Equipment,17/07/2013,1261748,"3,000.00",A000470,Dell Computer Corporation Ltd
North West Leicestershire District Council,31UH ,Information Technology,ICT,ICT Services,IT - solutions,17/07/2013,1261495,"3,000.00",A034753,ANS Group Plc
North West Leicestershire District Council,31UH ,Information Technology,ICT,ICT Services,IT - Equipment,17/07/2013,1261748,"3,000.00",A000470,Dell Computer Corporation Ltd
North West Leicestershire District Council,31UH ,Street Management,ESS,Environment - Street Scene,replacement boilers,17/07/2013,1261502,"2,940.96",A040460,Canon UK Ltd
North West Leicestershire District Council,31UH ,Street Management,ESS,Environment - Street Scene,replacement boilers,17/07/2013,1261502,"2,940.96",A040460,Canon UK Ltd
North West Leicestershire District Council,31UH ,Information Technology,ICT,ICT Services,Telecommunications,10/07/2013,1260887,"2,750.85",A038473,Cable & Wireless Worldwide
North West Leicestershire District Council,31UH ,Information Technology,ICT,ICT Services,Telecommunications,10/07/2013,1260887,"2,750.85",A038473,Cable & Wireless Worldwide
North West Leicestershire District Council,31UH ,Street Management,ENOP,Environment Parks,Horticulture - trees,03/07/2013,1260423,"2,650.00",A039324,Four Counties Tree Specialists
North West Leicestershire District Council,31UH ,Street Management,ENOT,Environment Transport,Vehicle Services - Axle Weighing,10/07/2013,1260914,"2,590.00",A032268,Axle Weight Technology Ltd
North West Leicestershire District Council,31UH ,Street Management,ENOT,Environment Transport,Vehicle Services - Axle Weighing,10/07/2013,1260914,"2,590.00",A032268,Axle Weight Technology Ltd
North West Leicestershire District Council,31UH ,Housing,HRAPBS,HRA Performance & Business Support,Windows - Window Hardware,24/07/2013,1261851,"2,425.00",A032217,HITEC (Laboratories) Ltd
North West Leicestershire District Council,31UH ,Housing,HRAPBS,HRA Performance & Business Support,Windows - Window Hardware,24/07/2013,1261851,"2,425.00",A032217,HITEC (Laboratories) Ltd
North West Leicestershire District Council,31UH ,Street Management,ESS,Environment - Street Scene,Home Energy Monitors,24/07/2013,1258871,"2,424.70",A040536,Newark & Sherwood District Council
North West Leicestershire District Council,31UH ,Street Management,ESS,Environment - Street Scene,Home Energy Monitors,24/07/2013,1258871,"2,424.70",A040536,Newark & Sherwood District Council
North West Leicestershire District Council,31UH ,Housing Repairs,HRAHRM,HRA Housing Repairs & Maintenance,Housing Maintenance - Replacement Windows and Doors,10/07/2013,1261050,"2,383.27",A036741,SBP Limited (Trading as Plastal & Permadoor)
North West Leicestershire District Council,31UH ,Information Technology,ICT,ICT Services,IT - Scanning equipment,03/07/2013,1260007,"2,375.00",A034157,Idox Software Ltd
North West Leicestershire District Council,31UH ,Information Technology,ICT,ICT Services,IT - Scanning equipment,03/07/2013,1260007,"2,375.00",A034157,Idox Software Ltd
North West Leicestershire District Council,31UH ,Leisure & Culture,CULTEV,Cultural Services Arts & Events,Sound & Lighting - Corporate Events,03/07/2013,1260389,"2,260.00",A027592,Chameleon Pro Audio & Lighting Ltd
North West Leicestershire District Council,31UH ,Leisure & Culture,CULTEV,Cultural Services Arts & Events,Sound & Lighting - Corporate Events,03/07/2013,1260389,"2,260.00",A027592,Chameleon Pro Audio & Lighting Ltd
North West Leicestershire District Council,31UH ,Street Management,ESS,Environment - Street Scene,replacement boilers,17/07/2013,1261501,"2,171.87",A040460,Canon UK Ltd
North West Leicestershire District Council,31UH ,Street Management,ESS,Environment - Street Scene,replacement boilers,17/07/2013,1261501,"2,171.87",A040460,Canon UK Ltd
North West Leicestershire District Council,31UH ,Street Management,ENOT,Environment Transport,Heavy Plant Machinery - JCB Dealership,10/07/2013,1260897,"2,120.71",A032114,Watling JCB Ltd
North West Leicestershire District Council,31UH ,Street Management,ENOT,Environment Transport,Heavy Plant Machinery - JCB Dealership,10/07/2013,1260897,"2,120.71",A032114,Watling JCB Ltd
North West Leicestershire District Council,31UH ,Street Management,ESS,Environment - Street Scene,Pay & display machines - tickets,17/07/2013,1261468,"2,067.20",A035478,Nagels UK Limited
North West Leicestershire District Council,31UH ,Street Management,ESS,Environment - Street Scene,Pay & display machines - tickets,17/07/2013,1261468,"2,067.20",A035478,Nagels UK Limited
North West Leicestershire District Council,31UH ,Housing Repairs,HRAHRM,HRA Housing Repairs & Maintenance,Fuel servicing (Hsg Maintenance),24/07/2013,1262011,"2,016.74",A035675,Elite Sweep Service
North West Leicestershire District Council,31UH ,Housing Repairs,HRAHRM,HRA Housing Repairs & Maintenance,Gas & Electricity - Boiler replacement,03/07/2013,1260607,"1,969.85",A031787,Lakers UK
North West Leicestershire District Council,31UH ,Housing Repairs,HRAHRM,HRA Housing Repairs & Maintenance,Fuel servicing (Hsg Maintenance),24/07/2013,1262010,"1,841.74",A035675,Elite Sweep Service
North West Leicestershire District Council,31UH ,Information Technology,ICT,ICT Services,IT - Telecommunications and data services,17/07/2013,1261476,"1,824.58",A032826,Freedom Communications (UK) Ltd
North West Leicestershire District Council,31UH ,Information Technology,ICT,ICT Services,IT - Telecommunications and data services,17/07/2013,1261476,"1,824.58",A032826,Freedom Communications (UK) Ltd
North West Leicestershire District Council,31UH ,Planning & Development,EPP,Environment Planning Policy,Design,03/07/2013,1260371,"1,817.04",A040611,Hepworth Design
North West Leicestershire District Council,31UH ,Planning & Development,EPP,Environment Planning Policy,Design,03/07/2013,1260371,"1,817.04",A040611,Qmatic (United Kingdom) Ltd
North West Leicestershire District Council,31UH ,Street Management,ENOT,Environment Transport,Heavy Plant Machinery - JCB Dealership,03/07/2013,1260439,"1,792.46",A032114,Watling JCB Ltd
North West Leicestershire District Council,31UH ,Street Management,ENOT,Environment Transport,Heavy Plant Machinery - JCB Dealership,03/07/2013,1260439,"1,792.46",A032114,Watling JCB Ltd
North West Leicestershire District Council,31UH ,Housing Repairs,HRAHRM,HRA Housing Repairs & Maintenance,Gas & Electricity - Boiler replacement,03/07/2013,1260474,"1,785.25",A031787,Lakers UK
North West Leicestershire District Council,31UH ,Housing Repairs,HRAHRM,HRA Housing Repairs & Maintenance,Housing Maintenance - Replacement Windows and Doors,10/07/2013,1261048,"1,748.18",A036741,SBP Limited (Trading as Plastal & Permadoor)
North West Leicestershire District Council,31UH ,Corporate Director,HR,Human Resources,IT - software services,03/07/2013,1260633,"1,700.00",A010859,Selima Limited
North West Leicestershire District Council,31UH ,Corporate Director,HR,Human Resources,IT - software services,03/07/2013,1260633,"1,700.00",A010859,Selima Limited
North West Leicestershire District Council,31UH ,Housing Repairs,HRAHRM,HRA Housing Repairs & Maintenance,Gas & Electricity - Boiler replacement,10/07/2013,1261287,"1,641.62",A031787,Lakers UK
North West Leicestershire District Council,31UH ,Street Management,ENOT,Environment Transport,Vehicles - Parts for Ford & Iveco,03/07/2013,1260283,"1,640.90",A037009,Sandicliffe Motor Group
North West Leicestershire District Council,31UH ,Street Management,ENOT,Environment Transport,Vehicles - Parts for Ford & Iveco,03/07/2013,1260283,"1,640.90",A037009,Sandicliffe Motor Group
North West Leicestershire District Council,31UH ,Housing Repairs,HRAHRM,HRA Housing Repairs & Maintenance,Gas & Electricity - Boiler replacement,03/07/2013,1260534,"1,584.98",A031787,Lakers UK
North West Leicestershire District Council,31UH ,Corporate Director,HR,Human Resources,Interim management,17/07/2013,1261770,"1,542.40",A034045,BJD Associates Ltd
North West Leicestershire District Council,31UH ,Corporate Director,HR,Human Resources,Interim management,17/07/2013,1261770,"1,542.40",A034045,BJD Associates Ltd
North West Leicestershire District Council,31UH ,Housing Repairs,HRAHRM,HRA Housing Repairs & Maintenance,Gas & Electricity - Boiler replacement,10/07/2013,1261326,"1,495.00",A031787,Lakers UK
North West Leicestershire District Council,31UH ,Leisure Centres,HPLC,Hood Park Leisure Centre,Leisure - Ultra Violet Filtration System for Leisure Refurbishment,10/07/2013,1259464,"1,484.00",A037677,Sterling Hydrotech Limited
North West Leicestershire District Council,31UH ,Leisure Centres,HPLC,Hood Park Leisure Centre,Leisure - Ultra Violet Filtration System for Leisure Refurbishment,10/07/2013,1259464,"1,484.00",A037677,Sterling Hydrotech Limited
North West Leicestershire District Council,31UH ,Housing Repairs,HRAHRM,HRA Housing Repairs & Maintenance,Gas & Electricity - Boiler replacement,24/07/2013,1262115,"1,478.36",A031787,Lakers UK
North West Leicestershire District Council,31UH ,Leisure Centres,HPLC,Hood Park Leisure Centre,Parts for Spin bikes,10/07/2013,1260906,"1,409.68",A040142,KJ & RMP Godfrey
North West Leicestershire District Council,31UH ,Street Management,ENOGT,Environment General Technician,Small civils and plant hire,10/07/2013,1260762,"1,390.00",A000438,Cuckoo Gap Limited
North West Leicestershire District Council,31UH ,Street Management,ENOGT,Environment General Technician,Small civils and plant hire,10/07/2013,1260762,"1,390.00",A000438,Cuckoo Gap Limited
North West Leicestershire District Council,31UH ,Housing Repairs,HRAHRM,HRA Housing Repairs & Maintenance,Gas & Electricity - Boiler replacement,03/07/2013,1260594,"1,297.20",A031787,Lakers UK
North West Leicestershire District Council,31UH ,Street Management,ENOP,Environment Parks,Waste Bins,24/07/2013,1262207,"1,285.00",A034203,Taylormade Castings Ltd
North West Leicestershire District Council,31UH ,Street Management,ENOP,Environment Parks,Waste Bins,24/07/2013,1262207,"1,285.00",A034203,Taylormade Castings Ltd
North West Leicestershire District Council,31UH ,Leisure Centres,HLC,Hermitage Leisure Centre,Coaches - Open Top,03/07/2013,1260360,"1,282.00",A017327,Roberts Coaches Limited
North West Leicestershire District Council,31UH ,Leisure Centres,HLC,Hermitage Leisure Centre,Coaches - Open Top,03/07/2013,1260360,"1,282.00",A017327,Roberts Coaches Limited
North West Leicestershire District Council,31UH ,Housing Repairs,HRAHRM,HRA Housing Repairs & Maintenance,Gas & Electricity - Boiler replacement,03/07/2013,1260553,"1,278.63",A031787,Lakers UK
North West Leicestershire District Council,31UH ,Housing Repairs,HRAHRM,HRA Housing Repairs & Maintenance,Housing Maintenance - Replacement Windows and Doors,10/07/2013,1261052,"1,266.19",A036741,SBP Limited (Trading as Plastal & Permadoor)
North West Leicestershire District Council,31UH ,Street Management,ENOT,Environment Transport,Vehicle Repairs - Road Sweepers,24/07/2013,1262004,"1,265.04",A001445,Scarab Sweepers Limited
North West Leicestershire District Council,31UH ,Street Management,ENOT,Environment Transport,Vehicle Repairs - Road Sweepers,24/07/2013,1262004,"1,265.04",A001445,Scarab Sweepers Limited
North West Leicestershire District Council,31UH ,Housing Strategy,HS,Community - Housing Strategy,Homelessness - Bed & Breakfast,17/07/2013,1261704,"1,210.00",A027377,Leicester City Hotel
North West Leicestershire District Council,31UH ,Housing Strategy,HS,Community - Housing Strategy,Homelessness - Bed & Breakfast,17/07/2013,1261704,"1,210.00",A027377,Leicester City Hotel
North West Leicestershire District Council,31UH ,Leisure Centres,HPLC,Hood Park Leisure Centre,Water filtration,03/07/2013,1260331,"1,190.00",A039258,Filtration Water Services Ltd
North West Leicestershire District Council,31UH ,Leisure Centres,HPLC,Hood Park Leisure Centre,repairs,03/07/2013,1260331,"1,190.00",A039258,Leicestershire Education Business Company
North West Leicestershire District Council,31UH ,Property Services,PROPFM,Property Facilities Management,Security services,24/07/2013,1260760,"1,185.00",A002190,Spectra Security Limited
North West Leicestershire District Council,31UH ,Property Services,PROPFM,Property Facilities Management,Security services,24/07/2013,1260760,"1,185.00",A002190,Spectra Security Limited
North West Leicestershire District Council,31UH ,Street Management,ENOT,Environment Transport,Vehicle Parts,17/07/2013,1261563,"1,175.00",A000522,Dennis Eagle Limited
North West Leicestershire District Council,31UH ,Street Management,ENOT,Environment Transport,Vehicle Parts,17/07/2013,1261563,"1,175.00",A000522,Dennis Eagle Limited
North West Leicestershire District Council,31UH ,Housing,HRAOPS,HRA Older Persons Service,Alarms - older persons system repairs and maintenance,03/07/2013,1260292,"1,158.00",A001701,Tunstall Healthcare (UK) Limited
North West Leicestershire District Council,31UH ,Housing,HRAOPS,HRA Older Persons Service,Alarms - older persons system repairs and maintenance,03/07/2013,1260292,"1,158.00",A001701,Tunstall Healthcare (UK) Limited
North West Leicestershire District Council,31UH ,Housing Repairs,HRAHRM,HRA Housing Repairs & Maintenance,Gas & Electricity - Gas installation ,24/07/2013,1262099,"1,128.76",A026237,British Gas Trading Limited
North West Leicestershire District Council,31UH ,Housing,HRACS,HRA Customer Services,Subscription - Membership & Accreditation Status,24/07/2013,1261727,"1,110.00",A034770,Telecare Services Association
North West Leicestershire District Council,31UH ,Housing,HRACS,HRA Customer Services,Subscription - Membership & Accreditation Status,24/07/2013,1261727,"1,110.00",A034770,Telecare Services Association
North West Leicestershire District Council,31UH ,Environmental Health,EEHL,Environmental Health & Licensing,Animals - Veterinary Care,03/07/2013,1260294,"1,090.95",A033670,Eville And Jones Limited
North West Leicestershire District Council,31UH ,Environmental Health,EEHL,Environmental Health & Licensing,Animals - Veterinary Care,03/07/2013,1260294,"1,090.95",A033670,Eville And Jones Limited
North West Leicestershire District Council,31UH ,Street Management,ENOT,Environment Transport,Fuel ,24/07/2013,1262139,"1,076.77",A034942,Pace Petroleum Ltd
North West Leicestershire District Council,31UH ,Street Management,ENOT,Environment Transport,Fuel ,24/07/2013,1262139,"1,076.77",A034942,Pace Petroleum Ltd
North West Leicestershire District Council,31UH ,Street Management,ENOT,Environment Transport,Vehicle Repairs - Road Sweepers,24/07/2013,1261972,"1,073.81",A001445,Scarab Sweepers Limited
North West Leicestershire District Council,31UH ,Street Management,ENOT,Environment Transport,Vehicle Repairs - Road Sweepers,24/07/2013,1261972,"1,073.81",A001445,Scarab Sweepers Limited
North West Leicestershire District Council,31UH ,Street Management,ENOP,Environment Parks,Grant payment,03/07/2013,1260054,"1,025.00",A027561,MJM Plumbing & Heating Services (Midlands) Ltd
North West Leicestershire District Council,31UH ,Housing Repairs,HRAHRM,HRA Housing Repairs & Maintenance,Gas & Electricity - Boiler replacement,03/07/2013,1260485,"1,003.69",A031787,Lakers UK
North West Leicestershire District Council,31UH ,Housing Repairs,HRAHRM,HRA Housing Repairs & Maintenance,Gas & Electricity - Boiler replacement,24/07/2013,1262054,997.50,A031787,Lakers UK
North West Leicestershire District Council,31UH ,Leisure Centres,HLC,Hermitage Leisure Centre,Water - Treatment Chemicals,03/07/2013,1259920,986.21,A001591,Stowlin Ltd
North West Leicestershire District Council,31UH ,Leisure Centres,HLC,Hermitage Leisure Centre,Water - Treatment Chemicals,03/07/2013,1259920,986.21,A001591,Stowlin Ltd
North West Leicestershire District Council,31UH ,Housing,HRAHM,HRA Housing Management,Printing Services,03/07/2013,1259832,986.20,A025384,Wilpbond Limited t/a Prontaprint
North West Leicestershire District Council,31UH ,Housing,HRAHM,HRA Housing Management,Printing Services,03/07/2013,1259832,986.20,A025384,Wilpbond Limited t/a Prontaprint
North West Leicestershire District Council,31UH ,Street Management,ENOGT,Environment General Technician,Small civils and plant hire,10/07/2013,1260763,986.00,A000438,Cuckoo Gap Limited
North West Leicestershire District Council,31UH ,Street Management,ENOGT,Environment General Technician,Small civils and plant hire,10/07/2013,1260763,986.00,A000438,Cuckoo Gap Limited
North West Leicestershire District Council,31UH ,Leisure Centres,HLC,Hermitage Leisure Centre,Water - Treatment Chemicals,03/07/2013,1260746,971.83,A001591,Stowlin Ltd
North West Leicestershire District Council,31UH ,Leisure Centres,HLC,Hermitage Leisure Centre,Water - Treatment Chemicals,03/07/2013,1260746,971.83,A001591,Stowlin Ltd
North West Leicestershire District Council,31UH ,Planning & Development,ECCTV,Environment - Town Centre/CCTV,Security Services - CCTV Maintenance,10/07/2013,1260974,953.99,A035493,Quadrant Security Group Limited
North West Leicestershire District Council,31UH ,Planning & Development,ECCTV,Environment - Town Centre/CCTV,Security Services - CCTV Maintenance,10/07/2013,1260974,953.99,A035493,Quadrant Security Group Limited
North West Leicestershire District Council,31UH ,Housing Repairs,HRAHRM,HRA Housing Repairs & Maintenance,Gas & Electricity - Boiler replacement,17/07/2013,1261655,939.17,A031787,Lakers UK
North West Leicestershire District Council,31UH ,Housing Repairs,HRAHRM,HRA Housing Repairs & Maintenance,Gas & Electricity - Boiler replacement,03/07/2013,1260597,934.26,A031787,Lakers UK
North West Leicestershire District Council,31UH ,Housing Repairs,HRAHRM,HRA Housing Repairs & Maintenance,PPE,03/07/2013,1260461,922.63,A009933,Westbury Industrial Supplies Limited
North West Leicestershire District Council,31UH ,Housing Repairs,HRAHRM,HRA Housing Repairs & Maintenance,PPE,03/07/2013,1260461,922.63,A009933,Westbury Industrial Supplies Limited
North West Leicestershire District Council,31UH ,Leisure Centres,HLC,Hermitage Leisure Centre,Leisure - Recreational equipment supplier,24/07/2013,1260259,899.61,A001642,Technogym Uk Limited
North West Leicestershire District Council,31UH ,Leisure Centres,HLC,Hermitage Leisure Centre,Leisure - Recreational equipment supplier,24/07/2013,1260259,899.61,A001642,Technogym Uk Limited
North West Leicestershire District Council,31UH ,Housing Repairs,HRAHRM,HRA Housing Repairs & Maintenance,Gas & Electricity - Boiler replacement,24/07/2013,1262055,895.00,A031787,Lakers UK
North West Leicestershire District Council,31UH ,Chief Exec,CHEX,Chief Executive,#N/A,03/07/2013,1260624,889.11,A039356,Broadstead Associates Ltd
North West Leicestershire District Council,31UH ,Chief Exec,CHEX,Chief Executive,#N/A,03/07/2013,1260624,889.11,A039356,Johnston Sweepers Ltd
North West Leicestershire District Council,31UH ,Leisure Centres,HPLC,Hood Park Leisure Centre,safety product,24/07/2013,1261962,870.00,A027301,IQL UK Ltd
North West Leicestershire District Council,31UH ,Leisure Centres,HPLC,Hood Park Leisure Centre,safety product,24/07/2013,1261962,870.00,A027301,IQL UK Ltd
North West Leicestershire District Council,31UH ,Property Services,PROPCL,Property Commercial Lettings,Building - General Maintenance works - Minor framework,03/07/2013,1257880,864.64,A036239,Alf Wright Construction Limited
North West Leicestershire District Council,31UH ,Property Services,PROPCL,Property Commercial Lettings,Building - General Maintenance works - Minor framework,03/07/2013,1257880,864.64,A036239,Alf Wright Construction Limited
North West Leicestershire District Council,31UH ,Housing,HRAHM,HRA Housing Management,Insurance policies,17/07/2013,1260799,861.29,A001836,Zurich Insurance Company
North West Leicestershire District Council,31UH ,Housing,HRAHM,HRA Housing Management,Insurance policies,17/07/2013,1260799,861.29,A001836,Zurich Insurance Company
North West Leicestershire District Council,31UH ,Housing Repairs,HRAHRM,HRA Housing Repairs & Maintenance,Housing Maintenance - Replacement Windows and Doors,10/07/2013,1261051,846.68,A036741,SBP Limited (Trading as Plastal & Permadoor)
North West Leicestershire District Council,31UH ,Housing Repairs,HRAHRM,HRA Housing Repairs & Maintenance,Gas & Electricity - Boiler replacement,10/07/2013,1261301,812.20,A031787,Lakers UK
North West Leicestershire District Council,31UH ,Street Management,ENOT,Environment Transport,Vehicle Repairs - Green Sweeper ,24/07/2013,1262198,782.83,A000063,Tennant UK Cleaning Solutions Limited
North West Leicestershire District Council,31UH ,Street Management,ENOT,Environment Transport,Vehicle Repairs - Green Sweeper ,24/07/2013,1262198,782.83,A000063,Tennant UK Cleaning Solutions Limited
North West Leicestershire District Council,31UH ,Housing Repairs,HRAHRM,HRA Housing Repairs & Maintenance,Gas & Electricity - Boiler replacement,10/07/2013,1261275,782.00,A031787,Lakers UK
North West Leicestershire District Council,31UH ,Housing Repairs,HRAHRM,HRA Housing Repairs & Maintenance,Gas & Electricity - Boiler replacement,17/07/2013,1261656,782.00,A031787,Lakers UK
North West Leicestershire District Council,31UH ,Housing Strategy,HS,Community - Housing Strategy,Homelessness - Bed & Breakfast,24/07/2013,1261951,770.00,A027377,Leicester City Hotel
North West Leicestershire District Council,31UH ,Housing Strategy,HS,Community - Housing Strategy,Homelessness - Bed & Breakfast,24/07/2013,1261951,770.00,A027377,Leicester City Hotel
North West Leicestershire District Council,31UH ,Street Management,ENOT,Environment Transport,Fuel ,03/07/2013,1260622,760.75,A034942,Pace Petroleum Ltd
North West Leicestershire District Council,31UH ,Street Management,ENOT,Environment Transport,Fuel ,03/07/2013,1260622,760.75,A034942,Pace Petroleum Ltd
North West Leicestershire District Council,31UH ,Housing Repairs,HRAHRM,HRA Housing Repairs & Maintenance,waste & recycling ,17/07/2013,1261595,759.18,A031086,Premier Waste and Recycling
North West Leicestershire District Council,31UH ,Housing Repairs,HRAHRM,HRA Housing Repairs & Maintenance,waste & recycling ,17/07/2013,1261596,759.18,A031086,Premier Waste and Recycling
North West Leicestershire District Council,31UH ,Leisure Centres,HLC,Hermitage Leisure Centre,Leisure - Pool Maintenance,10/07/2013,1260836,752.73,A034993,CSS Pools & Leisure
North West Leicestershire District Council,31UH ,Leisure Centres,HLC,Hermitage Leisure Centre,Leisure - Pool Maintenance,10/07/2013,1260836,752.73,A034993,CSS Pools & Leisure
North West Leicestershire District Council,31UH ,Planning & Development,EDC,Environment - Development Control,Advertising Agency,03/07/2013,1260437,752.69,A001395,Euro RSCG Riley
North West Leicestershire District Council,31UH ,Planning & Development,EDC,Environment - Development Control,Advertising Agency,03/07/2013,1260437,752.69,A001395,Euro RSCG Riley
North West Leicestershire District Council,31UH ,Leisure Centres,HLC,Hermitage Leisure Centre,Air Conditioning & Refrigeration,10/07/2013,1260908,745.00,A022180,Complete Cooling Services Ltd
North West Leicestershire District Council,31UH ,Street Management,ESS,Environment - Street Scene,Small civils and plant hire,17/07/2013,1260927,745.00,A000438,Cuckoo Gap Limited
North West Leicestershire District Council,31UH ,Leisure Centres,HLC,Hermitage Leisure Centre,Air Conditioning & Refrigeration,10/07/2013,1260908,745.00,A022180,Complete Cooling Services Ltd
North West Leicestershire District Council,31UH ,Street Management,ESS,Environment - Street Scene,Small civils and plant hire,17/07/2013,1260927,745.00,A000438,Cuckoo Gap Limited
North West Leicestershire District Council,31UH ,Housing Repairs,HRAHRM,HRA Housing Repairs & Maintenance,waste & recycling ,24/07/2013,1262014,744.00,A031086,Premier Waste and Recycling
North West Leicestershire District Council,31UH ,Leisure Centres,HPLC,Hood Park Leisure Centre,Alarms - Fire and Security,24/07/2013,1261904,736.09,A000021,ADT Fire And Security
North West Leicestershire District Council,31UH ,Leisure Centres,HPLC,Hood Park Leisure Centre,Alarms - Fire and Security,24/07/2013,1261904,736.09,A000021,ADT Fire And Security
North West Leicestershire District Council,31UH ,Housing Repairs,HRAHRM,HRA Housing Repairs & Maintenance,Gas & Electricity - Boiler replacement,10/07/2013,1261278,719.90,A031787,Lakers UK
North West Leicestershire District Council,31UH ,Street Management,ENOT,Environment Transport,PPE,24/07/2013,1262133,705.97,A009933,Westbury Industrial Supplies Limited
North West Leicestershire District Council,31UH ,Street Management,ENOT,Environment Transport,PPE,24/07/2013,1262133,705.97,A009933,Westbury Industrial Supplies Limited
North West Leicestershire District Council,31UH ,Housing Repairs,HRAHRM,HRA Housing Repairs & Maintenance,waste & recycling ,24/07/2013,1262119,704.55,A031086,Premier Waste and Recycling
North West Leicestershire District Council,31UH ,Street Management,ENOGT,Environment General Technician,Small civils and plant hire,24/07/2013,1261966,695.58,A000438,Cuckoo Gap Limited
North West Leicestershire District Council,31UH ,Street Management,ENOGT,Environment General Technician,Small civils and plant hire,24/07/2013,1261966,695.58,A000438,Cuckoo Gap Limited
North West Leicestershire District Council,31UH ,Street Management,ENOT,Environment Transport,Gas - Heating,10/07/2013,1260820,687.36,A032686,Calor Gas Limited
North West Leicestershire District Council,31UH ,Street Management,ENOT,Environment Transport,Gas - Heating,10/07/2013,1260820,687.36,A032686,Calor Gas Limited
North West Leicestershire District Council,31UH ,Housing Repairs,HRAHRM,HRA Housing Repairs & Maintenance,Housing Maintenance - Supply and Fit of Composite Doors and UPVC Frames,24/07/2013,1262123,685.75,A038041,I G Doors Limited
North West Leicestershire District Council,31UH ,Housing Repairs,HRAHRM,HRA Housing Repairs & Maintenance,Gas & Electricity - Boiler replacement,24/07/2013,1262052,678.31,A031787,Lakers UK
North West Leicestershire District Council,31UH ,Environmental Health,EEHL,Environmental Health & Licensing,Animals - Veterinary Care,17/07/2013,1261740,675.35,A033670,Eville And Jones Limited
North West Leicestershire District Council,31UH ,Environmental Health,EEHL,Environmental Health & Licensing,Animals - Veterinary Care,17/07/2013,1261740,675.35,A033670,Eville And Jones Limited
North West Leicestershire District Council,31UH ,Housing Repairs,HRAHRM,HRA Housing Repairs & Maintenance,Gas & Electricity - Boiler replacement,10/07/2013,1261285,649.68,A031787,Lakers UK
North West Leicestershire District Council,31UH ,Housing Repairs,HRAHRM,HRA Housing Repairs & Maintenance,Gas & Electricity - Boiler replacement,03/07/2013,1260572,627.77,A031787,Lakers UK
North West Leicestershire District Council,31UH ,Housing Repairs,HRAHRM,HRA Housing Repairs & Maintenance,Gas & Electricity - Gas installation ,10/07/2013,1261032,622.33,A026237,British Gas Trading Limited
North West Leicestershire District Council,31UH ,Housing Repairs,HRAHRM,HRA Housing Repairs & Maintenance,Gas & Electricity - Gas installation ,24/07/2013,1262057,622.33,A026237,British Gas Trading Limited
North West Leicestershire District Council,31UH ,Housing Repairs,HRAHRM,HRA Housing Repairs & Maintenance,Gas & Electricity - Gas installation ,24/07/2013,1262060,622.33,A026237,British Gas Trading Limited
North West Leicestershire District Council,31UH ,Housing Repairs,HRAHRM,HRA Housing Repairs & Maintenance,Gas & Electricity - Gas installation ,24/07/2013,1262061,622.33,A026237,British Gas Trading Limited
North West Leicestershire District Council,31UH ,Housing Repairs,HRAHRM,HRA Housing Repairs & Maintenance,Gas & Electricity - Gas installation ,24/07/2013,1262062,622.33,A026237,British Gas Trading Limited
North West Leicestershire District Council,31UH ,Housing Repairs,HRAHRM,HRA Housing Repairs & Maintenance,Gas & Electricity - Gas installation ,24/07/2013,1262063,622.33,A026237,British Gas Trading Limited
North West Leicestershire District Council,31UH ,Housing Repairs,HRAHRM,HRA Housing Repairs & Maintenance,Gas & Electricity - Gas installation ,24/07/2013,1262064,622.33,A026237,British Gas Trading Limited
North West Leicestershire District Council,31UH ,Housing Repairs,HRAHRM,HRA Housing Repairs & Maintenance,Gas & Electricity - Gas installation ,24/07/2013,1262065,622.33,A026237,British Gas Trading Limited
North West Leicestershire District Council,31UH ,Housing Repairs,HRAHRM,HRA Housing Repairs & Maintenance,Gas & Electricity - Gas installation ,24/07/2013,1262066,622.33,A026237,British Gas Trading Limited
North West Leicestershire District Council,31UH ,Housing Repairs,HRAHRM,HRA Housing Repairs & Maintenance,Gas & Electricity - Gas installation ,24/07/2013,1262067,622.33,A026237,British Gas Trading Limited
North West Leicestershire District Council,31UH ,Housing Repairs,HRAHRM,HRA Housing Repairs & Maintenance,Gas & Electricity - Gas installation ,24/07/2013,1262068,622.33,A026237,British Gas Trading Limited
North West Leicestershire District Council,31UH ,Housing Repairs,HRAHRM,HRA Housing Repairs & Maintenance,Gas & Electricity - Gas installation ,24/07/2013,1262069,622.33,A026237,British Gas Trading Limited
North West Leicestershire District Council,31UH ,Housing Repairs,HRAHRM,HRA Housing Repairs & Maintenance,Gas & Electricity - Gas installation ,24/07/2013,1262070,622.33,A026237,British Gas Trading Limited
North West Leicestershire District Council,31UH ,Housing Repairs,HRAHRM,HRA Housing Repairs & Maintenance,Gas & Electricity - Gas installation ,24/07/2013,1262071,622.33,A026237,British Gas Trading Limited
North West Leicestershire District Council,31UH ,Housing Repairs,HRAHRM,HRA Housing Repairs & Maintenance,Gas & Electricity - Gas installation ,24/07/2013,1262072,622.33,A026237,British Gas Trading Limited
North West Leicestershire District Council,31UH ,Housing Repairs,HRAHRM,HRA Housing Repairs & Maintenance,Gas & Electricity - Gas installation ,24/07/2013,1262073,622.33,A026237,British Gas Trading Limited
North West Leicestershire District Council,31UH ,Housing Repairs,HRAHRM,HRA Housing Repairs & Maintenance,Gas & Electricity - Gas installation ,24/07/2013,1262074,622.33,A026237,British Gas Trading Limited
North West Leicestershire District Council,31UH ,Housing Repairs,HRAHRM,HRA Housing Repairs & Maintenance,Gas & Electricity - Gas installation ,24/07/2013,1262075,622.33,A026237,British Gas Trading Limited
North West Leicestershire District Council,31UH ,Housing Repairs,HRAHRM,HRA Housing Repairs & Maintenance,Gas & Electricity - Gas installation ,24/07/2013,1262078,622.33,A026237,British Gas Trading Limited
North West Leicestershire District Council,31UH ,Housing Repairs,HRAHRM,HRA Housing Repairs & Maintenance,Gas & Electricity - Gas installation ,24/07/2013,1262079,622.33,A026237,British Gas Trading Limited
North West Leicestershire District Council,31UH ,Housing Repairs,HRAHRM,HRA Housing Repairs & Maintenance,Gas & Electricity - Gas installation ,24/07/2013,1262080,622.33,A026237,British Gas Trading Limited
North West Leicestershire District Council,31UH ,Housing Repairs,HRAHRM,HRA Housing Repairs & Maintenance,Gas & Electricity - Gas installation ,24/07/2013,1262084,622.33,A026237,British Gas Trading Limited
North West Leicestershire District Council,31UH ,Housing Repairs,HRAHRM,HRA Housing Repairs & Maintenance,Gas & Electricity - Gas installation ,24/07/2013,1262086,622.33,A026237,British Gas Trading Limited
North West Leicestershire District Council,31UH ,Housing Repairs,HRAHRM,HRA Housing Repairs & Maintenance,Gas & Electricity - Gas installation ,24/07/2013,1262087,622.33,A026237,British Gas Trading Limited
North West Leicestershire District Council,31UH ,Housing Repairs,HRAHRM,HRA Housing Repairs & Maintenance,Gas & Electricity - Gas installation ,24/07/2013,1262088,622.33,A026237,British Gas Trading Limited
North West Leicestershire District Council,31UH ,Housing Repairs,HRAHRM,HRA Housing Repairs & Maintenance,Gas & Electricity - Gas installation ,24/07/2013,1262089,622.33,A026237,British Gas Trading Limited
North West Leicestershire District Council,31UH ,Housing Repairs,HRAHRM,HRA Housing Repairs & Maintenance,Gas & Electricity - Gas installation ,24/07/2013,1262090,622.33,A026237,British Gas Trading Limited
North West Leicestershire District Council,31UH ,Housing Repairs,HRAHRM,HRA Housing Repairs & Maintenance,Gas & Electricity - Gas installation ,24/07/2013,1262091,622.33,A026237,British Gas Trading Limited
North West Leicestershire District Council,31UH ,Housing Repairs,HRAHRM,HRA Housing Repairs & Maintenance,Gas & Electricity - Gas installation ,24/07/2013,1262092,622.33,A026237,British Gas Trading Limited
North West Leicestershire District Council,31UH ,Housing Repairs,HRAHRM,HRA Housing Repairs & Maintenance,Gas & Electricity - Gas installation ,24/07/2013,1262093,622.33,A026237,British Gas Trading Limited
North West Leicestershire District Council,31UH ,Housing Repairs,HRAHRM,HRA Housing Repairs & Maintenance,Gas & Electricity - Gas installation ,24/07/2013,1262094,622.33,A026237,British Gas Trading Limited
North West Leicestershire District Council,31UH ,Housing Repairs,HRAHRM,HRA Housing Repairs & Maintenance,Gas & Electricity - Gas installation ,24/07/2013,1262095,622.33,A026237,British Gas Trading Limited
North West Leicestershire District Council,31UH ,Housing Repairs,HRAHRM,HRA Housing Repairs & Maintenance,Gas & Electricity - Gas installation ,24/07/2013,1262096,622.33,A026237,British Gas Trading Limited
North West Leicestershire District Council,31UH ,Housing Repairs,HRAHRM,HRA Housing Repairs & Maintenance,Gas & Electricity - Gas installation ,24/07/2013,1262097,622.33,A026237,British Gas Trading Limited
North West Leicestershire District Council,31UH ,Housing Repairs,HRAHRM,HRA Housing Repairs & Maintenance,Gas & Electricity - Gas installation ,24/07/2013,1262098,622.33,A026237,British Gas Trading Limited
North West Leicestershire District Council,31UH ,Housing Repairs,HRAHRM,HRA Housing Repairs & Maintenance,Gas & Electricity - Gas installation ,24/07/2013,1262100,622.33,A026237,British Gas Trading Limited
North West Leicestershire District Council,31UH ,Housing Repairs,HRAHRM,HRA Housing Repairs & Maintenance,Gas & Electricity - Gas installation ,24/07/2013,1262101,622.33,A026237,British Gas Trading Limited
North West Leicestershire District Council,31UH ,Housing Repairs,HRAHRM,HRA Housing Repairs & Maintenance,Gas & Electricity - Gas installation ,24/07/2013,1262102,622.33,A026237,British Gas Trading Limited
North West Leicestershire District Council,31UH ,Housing Repairs,HRAHRM,HRA Housing Repairs & Maintenance,Gas & Electricity - Gas installation ,24/07/2013,1262103,622.33,A026237,British Gas Trading Limited
North West Leicestershire District Council,31UH ,Housing Repairs,HRAHRM,HRA Housing Repairs & Maintenance,Gas & Electricity - Gas installation ,24/07/2013,1262104,622.33,A026237,British Gas Trading Limited
North West Leicestershire District Council,31UH ,Housing Repairs,HRAHRM,HRA Housing Repairs & Maintenance,Gas & Electricity - Gas installation ,24/07/2013,1262105,622.33,A026237,British Gas Trading Limited
North West Leicestershire District Council,31UH ,Housing Repairs,HRAHRM,HRA Housing Repairs & Maintenance,Gas & Electricity - Gas installation ,24/07/2013,1262106,622.33,A026237,British Gas Trading Limited
North West Leicestershire District Council,31UH ,Housing Repairs,HRAHRM,HRA Housing Repairs & Maintenance,Gas & Electricity - Gas installation ,24/07/2013,1262107,622.33,A026237,British Gas Trading Limited
North West Leicestershire District Council,31UH ,Housing Repairs,HRAHRM,HRA Housing Repairs & Maintenance,Gas & Electricity - Gas installation ,24/07/2013,1262108,622.33,A026237,British Gas Trading Limited
North West Leicestershire District Council,31UH ,Housing Repairs,HRAHRM,HRA Housing Repairs & Maintenance,Gas & Electricity - Gas installation ,24/07/2013,1262109,622.33,A026237,British Gas Trading Limited
North West Leicestershire District Council,31UH ,Housing Repairs,HRAHRM,HRA Housing Repairs & Maintenance,Gas & Electricity - Gas installation ,24/07/2013,1262110,622.33,A026237,British Gas Trading Limited
North West Leicestershire District Council,31UH ,Housing Repairs,HRAHRM,HRA Housing Repairs & Maintenance,Gas & Electricity - Gas installation ,24/07/2013,1262111,622.33,A026237,British Gas Trading Limited
North West Leicestershire District Council,31UH ,Housing Repairs,HRAHRM,HRA Housing Repairs & Maintenance,Gas & Electricity - Gas installation ,24/07/2013,1262112,622.33,A026237,British Gas Trading Limited
North West Leicestershire District Council,31UH ,Housing Repairs,HRAHRM,HRA Housing Repairs & Maintenance,Gas & Electricity - Gas installation ,24/07/2013,1262113,622.33,A026237,British Gas Trading Limited
North West Leicestershire District Council,31UH ,Housing Repairs,HRAHRM,HRA Housing Repairs & Maintenance,training,24/07/2013,1260304,600.00,A040535,Wescot Credit Services Ltd
North West Leicestershire District Council,31UH ,Information Technology,ICT,ICT Services,IT - software licence,24/07/2013,1261877,600.00,A021795,Associated Knowledge Systems Ltd
North West Leicestershire District Council,31UH ,Housing Repairs,HRAHRM,HRA Housing Repairs & Maintenance,training,24/07/2013,1260304,600.00,A040535,Wescot Credit Services Ltd
North West Leicestershire District Council,31UH ,Information Technology,ICT,ICT Services,IT - software licence,24/07/2013,1261877,600.00,A021795,Associated Knowledge Systems Ltd
North West Leicestershire District Council,31UH ,Housing Repairs,HRAHRM,HRA Housing Repairs & Maintenance,Gas & Electricity - Boiler replacement,10/07/2013,1261288,598.00,A031787,Lakers UK
North West Leicestershire District Council,31UH ,Leisure & Culture,CULTEV,Cultural Services Arts & Events,Leisure - Agency for street entertainment and performers for events,03/07/2013,1260394,595.00,A037317,Fools Paradise
North West Leicestershire District Council,31UH ,Leisure & Culture,CULTEV,Cultural Services Arts & Events,Leisure - Agency for street entertainment and performers for events,03/07/2013,1260394,595.00,A037317,Fools Paradise
North West Leicestershire District Council,31UH ,Street Management,ENOT,Environment Transport,Vehicle Repairs,10/07/2013,1260938,575.45,A000625,Ford & Slater Group Ltd
North West Leicestershire District Council,31UH ,Street Management,ENOT,Environment Transport,Vehicle Repairs,10/07/2013,1260938,575.45,A000625,Ford & Slater Group Ltd
North West Leicestershire District Council,31UH ,Housing Repairs,HRAHRM,HRA Housing Repairs & Maintenance,Gas & Electricity - Boiler replacement,03/07/2013,1260501,564.62,A031787,Lakers UK
North West Leicestershire District Council,31UH ,Housing Repairs,HRAHRM,HRA Housing Repairs & Maintenance,Gas & Electricity - Boiler replacement,03/07/2013,1260520,563.50,A031787,Lakers UK
North West Leicestershire District Council,31UH ,Housing Repairs,HRAHRM,HRA Housing Repairs & Maintenance,Gas & Electricity - Boiler replacement,03/07/2013,1260585,563.50,A031787,Lakers UK
North West Leicestershire District Council,31UH ,Property Services,PROPFM,Property Facilities Management,Professional Services,24/07/2013,1261865,562.50,A036009,Turnkey Design Partnership Limited
North West Leicestershire District Council,31UH ,Property Services,PROPFM,Property Facilities Management,Professional Services,24/07/2013,1261865,562.50,A036009,Turnkey Design Partnership Limited
North West Leicestershire District Council,31UH ,Property Services,PROPCL,Property Commercial Lettings,Horticulture - Internal Plants,17/07/2013,1260934,552.50,A003371,Urban Planters Leicestershire (limited)
North West Leicestershire District Council,31UH ,Property Services,PROPCL,Property Commercial Lettings,Horticulture - Internal Plants,17/07/2013,1260934,552.50,A003371,Urban Planters Leicestershire (limited)
North West Leicestershire District Council,31UH ,Leisure Centres,HLC,Hermitage Leisure Centre,Printing Services,17/07/2013,1261496,550.00,A037247,MWL Print Group Limited
North West Leicestershire District Council,31UH ,Leisure Centres,HLC,Hermitage Leisure Centre,printing services,17/07/2013,1261496,550.00,A037247,MWL Print Group Limited
North West Leicestershire District Council,31UH ,Street Management,ENOT,Environment Transport,Vehicle Parts,10/07/2013,1261005,545.00,A035120,Sherwood Truck and Van Limited
North West Leicestershire District Council,31UH ,Street Management,ENOT,Environment Transport,Vehicle Parts,10/07/2013,1261005,545.00,A035120,Sherwood Truck and Van Limited
North West Leicestershire District Council,31UH ,Housing Repairs,HRAHRM,HRA Housing Repairs & Maintenance,Gas & Electricity - Boiler replacement,17/07/2013,1261625,539.17,A031787,Lakers UK
North West Leicestershire District Council,31UH ,Housing Repairs,HRAHRM,HRA Housing Repairs & Maintenance,Gas & Electricity - Boiler replacement,17/07/2013,1261605,531.24,A031787,Lakers UK
North West Leicestershire District Council,31UH ,Environmental Health,EEHL,Environmental Health & Licensing,Pest Control Products,17/07/2013,1261743,524.64,A000890,Killgerm Chemicals Ltd
North West Leicestershire District Council,31UH ,Environmental Health,EEHL,Environmental Health & Licensing,Pest Control Products,17/07/2013,1261743,524.64,A000890,Killgerm Chemicals Ltd
North West Leicestershire District Council,31UH ,Housing Repairs,HRAHRM,HRA Housing Repairs & Maintenance,Gas & Electricity - Boiler replacement,17/07/2013,1261626,521.78,A031787,Lakers UK
North West Leicestershire District Council,31UH ,Information Technology,ICT,ICT Services,IT - Equipment / Consumables,03/07/2013,1260629,520.00,A025151,Probrand Limited
North West Leicestershire District Council,31UH ,Information Technology,ICT,ICT Services,IT - Equipment / Consumables,03/07/2013,1260629,520.00,A025151,Probrand Limited
North West Leicestershire District Council,31UH ,Information Technology,ICT,ICT Services,Paper,10/07/2013,1260926,508.82,A038178,Antalis McNaughton Limited
North West Leicestershire District Council,31UH ,Information Technology,ICT,ICT Services,Paper,10/07/2013,1260926,508.82,A038178,Antalis McNaughton Limited
North West Leicestershire District Council,31UH ,Housing Repairs,HRAHRM,HRA Housing Repairs & Maintenance,Gas & Electricity - Boiler replacement,03/07/2013,1260587,508.57,A031787,Lakers UK
North West Leicestershire District Council,31UH ,Property Services,PROPCL,Property Commercial Lettings,Contract Cleaning,03/07/2013,1259947,506.18,A003037,Coalville Cleaning Services
North West Leicestershire District Council,31UH ,Property Services,PROPCL,Property Commercial Lettings,Contract Cleaning,24/07/2013,1261926,506.18,A003037,Coalville Cleaning Services
North West Leicestershire District Council,31UH ,Property Services,PROPCL,Property Commercial Lettings,Contract Cleaning,03/07/2013,1259947,506.18,A003037,Coalville Cleaning Services
North West Leicestershire District Council,31UH ,Property Services,PROPCL,Property Commercial Lettings,Contract Cleaning,24/07/2013,1261926,506.18,A003037,Coalville Cleaning Services
North West Leicestershire District Council,31UH ,Leisure Centres,CDCC,Castle Donington Community College,Portable accommodation,10/07/2013,1260844,505.72,A005413,Elliott Group Limited
North West Leicestershire District Council,31UH ,Leisure Centres,CDCC,Castle Donington Community College,Portable accommodation,10/07/2013,1260844,505.72,A005413,Elliott Group Limited
North West Leicestershire District Council,31UH ,Leisure Centres,HLBC,Hermitage Bar & Catering,Catering Supplies - Confectionery.,03/07/2013,1260381,500.57,A001264,Palmer Harvey Mclane Ltd
North West Leicestershire District Council,31UH ,Leisure Centres,HLBC,Hermitage Bar & Catering,Catering Supplies - Confectionery.,03/07/2013,1260381,500.57,A001264,Palmer Harvey Mclane Ltd
North West Leicestershire District Council,31UH ,Street Management,ENOT,Environment Transport,Building Services,10/07/2013,1260898,500.37,A033258,R Massey & Son (Woodville) Ltd
North West Leicestershire District Council,31UH ,Street Management,ENOT,Environment Transport,Building Services,10/07/2013,1260898,500.37,A033258,R Massey & Son (Woodville) Ltd
